Workbook

Sheet 3 Aylık Satış Raporu
A2: 3 AYLIK SATIŞ RAPORU | J2: EN ÇOK SATILAN | K2: 5 | L2: ÜRÜNÜ GÖSTER
J4: DİĞER TÜM | K4: HAYIR | L4: ÜRÜNÜ GÖSTER
B34: ÜRÜN | C34: 1. ÇEYREK | D34: 2. ÇEYREK | E34: 3. ÇEYREK | F34: 4. ÇEYREK | G34: TOPLAM
B35: Çerçeve | C35: 4000 | D35: 4500 | E35: 5000 | F35: 5000 | G35: =SUM(Satış[[#This Row],[1. ÇEYREK]:[4. ÇEYREK]]) -> 18500
B36: Disk Freni, Ön | C36: 294 | D36: 249.9 | E36: 323.4 | F36: 367.5 | G36: =SUM(Satış[[#This Row],[1. ÇEYREK]:[4. ÇEYREK]]) -> 1234.8
B37: Kaliper Freni, Ön | C37: 200 | D37: 170 | E37: 220 | F37: 250 | G37: =SUM(Satış[[#This Row],[1. ÇEYREK]:[4. ÇEYREK]]) -> 840
B38: Disk Freni, Arka | C38: 400 | D38: 340 | E38: 440 | F38: 500 | G38: =SUM(Satış[[#This Row],[1. ÇEYREK]:[4. ÇEYREK]]) -> 1680
B39: Kaliper Freni, Arka | C39: 294 | D39: 249.9 | E39: 323.4 | F39: 367.5 | G39: =SUM(Satış[[#This Row],[1. ÇEYREK]:[4. ÇEYREK]]) -> 1234.8
B40: Şaryo | C40: 235 | D40: 199.75 | E40: 32 | F40: 293.75 | G40: =SUM(Satış[[#This Row],[1. ÇEYREK]:[4. ÇEYREK]]) -> 760.5
B41: Çatal | C41: 100 | D41: 85 | E41: 110 | F41: 125 | G41: =SUM(Satış[[#This Row],[1. ÇEYREK]:[4. ÇEYREK]]) -> 420
B42: Fren Kablosu | C42: 300 | D42: 255 | E42: 330 | F42: 375 | G42: =SUM(Satış[[#This Row],[1. ÇEYREK]:[4. ÇEYREK]]) -> 1260
B43: Kaydırıcı Kablosu | C43: 250 | D43: 212.5 | E43: 275 | F43: 312.5 | G43: =SUM(Satış[[#This Row],[1. ÇEYREK]:[4. ÇEYREK]]) -> 1050
B44: Arka Dişliler | C44: 400 | D44: 340 | E44: 440 | F44: 500 | G44: =SUM(Satış[[#This Row],[1. ÇEYREK]:[4. ÇEYREK]]) -> 1680
B45: Ön Dişliler | C45: 200 | D45: 170 | E45: 220 | F45: 250 | G45: =SUM(Satış[[#This Row],[1. ÇEYREK]:[4. ÇEYREK]]) -> 840
B46: Gidon | C46: 1895 | D46: 1610.75 | E46: 3445 | F46: 3333 | G46: =SUM(Satış[[#This Row],[1. ÇEYREK]:[4. ÇEYREK]]) -> 10283.75
B47: Fren Kolu | C47: 544 | D47: 462.4 | E47: 598.4 | F47: 680 | G47: =SUM(Satış[[#This Row],[1. ÇEYREK]:[4. ÇEYREK]]) -> 2284.8
B48: Koltuk Postu | C48: 200 | D48: 170 | E48: 220 | F48: 250 | G48: =SUM(Satış[[#This Row],[1. ÇEYREK]:[4. ÇEYREK]]) -> 840
B49: Tutamaç Mili Kelepçesi | C49: 60 | D49: 51 | E49: 66 | F49: 75 | G49: =SUM(Satış[[#This Row],[1. ÇEYREK]:[4. ÇEYREK]]) -> 252
B50: Hurç | C50: 2413 | D50: 2051.05 | E50: 4000 | F50: 3016.25 | G50: =SUM(Satış[[#This Row],[1. ÇEYREK]:[4. ÇEYREK]]) -> 11480.3
B51: Jant teli | C51: 233 | D51: 198.05 | E51: 256.3 | F51: 291.25 | G51: =SUM(Satış[[#This Row],[1. ÇEYREK]:[4. ÇEYREK]]) -> 978.6
B52: Göbek | C52: 354 | D52: 300.9 | E52: 389.4 | F52: 442.5 | G52: =SUM(Satış[[#This Row],[1. ÇEYREK]:[4. ÇEYREK]]) -> 1486.8
B53: Lastik | C53: 423 | D53: 359.55 | E53: 465.3 | F53: 528.75 | G53: =SUM(Satış[[#This Row],[1. ÇEYREK]:[4. ÇEYREK]]) -> 1776.6
B54: Tutamak | C54: 2222 | D54: 1888.7 | E54: 2444.2 | F54: 2777.5 | G54: =SUM(Satış[[#This Row],[1. ÇEYREK]:[4. ÇEYREK]]) -> 9332.4
B55: Tutamak Bandı | C55: 1550.4 | D55: 1317.84 | E55: 1705.44 | F55: 1938 | G55: =SUM(Satış[[#This Row],[1. ÇEYREK]:[4. ÇEYREK]]) -> 6511.68
B56: Yastık | C56: 30 | D56: 25.5 | E56: 33 | F56: 37.5 | G56: =SUM(Satış[[#This Row],[1. ÇEYREK]:[4. ÇEYREK]]) -> 126
B57: Zincir | C57: 208 | D57: 176.8 | E57: 228.8 | F57: 260 | G57: =SUM(Satış[[#This Row],[1. ÇEYREK]:[4. ÇEYREK]]) -> 873.6
B58: Derayman | C58: 356 | D58: 302.6 | E58: 391.6 | F58: 445 | G58: =SUM(Satış[[#This Row],[1. ÇEYREK]:[4. ÇEYREK]]) -> 1495.2
B59: Hızlı Serbest Bırakma Göbeği | C59: 258 | D59: 219.3 | E59: 283.8 | F59: 322.5 | G59: =SUM(Satış[[#This Row],[1. ÇEYREK]:[4. ÇEYREK]]) -> 1083.6
B60: Standart Göbek | C60: 414 | D60: 351.9 | E60: 455.4 | F60: 517.5 | G60: =SUM(Satış[[#This Row],[1. ÇEYREK]:[4. ÇEYREK]]) -> 1738.8
B61: Pedal | C61: 369 | D61: 313.65 | E61: 405.9 | F61: 461.25 | G61: =SUM(Satış[[#This Row],[1. ÇEYREK]:[4. ÇEYREK]]) -> 1549.8
B62: Zincir Koruması | C62: 324 | D62: 275.4 | E62: 356.4 | F62: 405 | G62: =SUM(Satış[[#This Row],[1. ÇEYREK]:[4. ÇEYREK]]) -> 1360.8
B63: Ayna | C63: 87 | D63: 73.95 | E63: 95.7 | F63: 108.75 | G63: =SUM(Satış[[#This Row],[1. ÇEYREK]:[4. ÇEYREK]]) -> 365.4

Sheet hesaplamalar (hidden)
A1: *** Bu sayfa gizli kalmalıdır ***
E4: Ürün | F4: 1. ÇEYREK | G4: 2. ÇEYREK | H4: 3. ÇEYREK | I4: 4. ÇEYREK | J4: Toplam
B5: 1 | C5: =IF($B5>n,"",LARGE(Satış[TOPLAM],1)) -> 18500 | D5: =IF($B5>n,"",IF(C4=C5,MATCH(C5,OFFSET(Satış[TOPLAM],D4,),0)+D4,MATCH(C5,Satış[TOPLAM],0))) -> 1 | E5: =IF($B5>n,"",INDEX(Satış[ÜRÜN],D5)) -> Çerçeve | F5: =IF($B5>n,"",INDEX(Satış[1. ÇEYREK],$D5)) -> 4000 | G5: =IF($B5>n,"",INDEX(Satış[2. ÇEYREK],$D5)) -> 4500 | H5: =IF($B5>n,"",INDEX(Satış[3. ÇEYREK],$D5)) -> 5000 | I5: =IF($B5>n,"",INDEX(Satış[4. ÇEYREK],$D5)) -> 5000 | J5: =IF($B5>n,"",SUM(F5:I5)) -> 18500
B6: 2 | C6: =IF($B6>n,"",LARGE(Satış[TOPLAM],2)) -> 11480.3 | D6: =IF($B6>n,"",IF(C5=C6,MATCH(C6,OFFSET(Satış[TOPLAM],D5,),0)+D5,MATCH(C6,Satış[TOPLAM],0))) -> 16 | E6: =IF($B6>n,"",INDEX(Satış[ÜRÜN],D6)) -> Hurç | F6: =IF($B6>n,"",INDEX(Satış[1. ÇEYREK],$D6)) -> 2413 | G6: =IF($B6>n,"",INDEX(Satış[2. ÇEYREK],$D6)) -> 2051.05 | H6: =IF($B6>n,"",INDEX(Satış[3. ÇEYREK],$D6)) -> 4000 | I6: =IF($B6>n,"",INDEX(Satış[4. ÇEYREK],$D6)) -> 3016.25 | J6: 11480.3
B7: 3 | C7: =IF($B7>n,"",LARGE(Satış[TOPLAM],3)) -> 10283.75 | D7: =IF($B7>n,"",IF(C6=C7,MATCH(C7,OFFSET(Satış[TOPLAM],D6,),0)+D6,MATCH(C7,Satış[TOPLAM],0))) -> 12 | E7: =IF($B7>n,"",INDEX(Satış[ÜRÜN],D7)) -> Gidon | F7: =IF($B7>n,"",INDEX(Satış[1. ÇEYREK],$D7)) -> 1895 | G7: =IF($B7>n,"",INDEX(Satış[2. ÇEYREK],$D7)) -> 1610.75 | H7: =IF($B7>n,"",INDEX(Satış[3. ÇEYREK],$D7)) -> 3445 | I7: =IF($B7>n,"",INDEX(Satış[4. ÇEYREK],$D7)) -> 3333 | J7: 10283.75
B8: 4 | C8: =IF($B8>n,"",LARGE(Satış[TOPLAM],4)) -> 9332.4 | D8: =IF($B8>n,"",IF(C7=C8,MATCH(C8,OFFSET(Satış[TOPLAM],D7,),0)+D7,MATCH(C8,Satış[TOPLAM],0))) -> 20 | E8: =IF($B8>n,"",INDEX(Satış[ÜRÜN],D8)) -> Tutamak | F8: =IF($B8>n,"",INDEX(Satış[1. ÇEYREK],$D8)) -> 2222 | G8: =IF($B8>n,"",INDEX(Satış[2. ÇEYREK],$D8)) -> 1888.7 | H8: =IF($B8>n,"",INDEX(Satış[3. ÇEYREK],$D8)) -> 2444.2 | I8: =IF($B8>n,"",INDEX(Satış[4. ÇEYREK],$D8)) -> 2777.5 | J8: 9332.4
B9: 5 | C9: =IF($B9>n,"",LARGE(Satış[TOPLAM],5)) -> 6511.68 | D9: =IF($B9>n,"",IF(C8=C9,MATCH(C9,OFFSET(Satış[TOPLAM],D8,),0)+D8,MATCH(C9,Satış[TOPLAM],0))) -> 21 | E9: =IF($B9>n,"",INDEX(Satış[ÜRÜN],D9)) -> Tutamak Bandı | F9: =IF($B9>n,"",INDEX(Satış[1. ÇEYREK],$D9)) -> 1550.4 | G9: =IF($B9>n,"",INDEX(Satış[2. ÇEYREK],$D9)) -> 1317.84 | H9: =IF($B9>n,"",INDEX(Satış[3. ÇEYREK],$D9)) -> 1705.44 | I9: =IF($B9>n,"",INDEX(Satış[4. ÇEYREK],$D9)) -> 1938 | J9: 6511.68
B10: 6 | C10: =IF($B10>n,"",LARGE(Satış[TOPLAM],6)) ->  | D10: =IF($B10>n,"",IF(C9=C10,MATCH(C10,OFFSET(Satış[TOPLAM],D9,),0)+D9,MATCH(C10,Satış[TOPLAM],0))) ->  | E10: =IF($B10>n,"",INDEX(Satış[ÜRÜN],D10)) ->  | F10: =IF($B10>n,"",INDEX(Satış[1. ÇEYREK],$D10)) ->  | G10: =IF($B10>n,"",INDEX(Satış[2. ÇEYREK],$D10)) ->  | H10: =IF($B10>n,"",INDEX(Satış[3. ÇEYREK],$D10)) ->  | I10: =IF($B10>n,"",INDEX(Satış[4. ÇEYREK],$D10)) -> 
B11: 7 | C11: =IF($B11>n,"",LARGE(Satış[TOPLAM],7)) ->  | D11: =IF($B11>n,"",IF(C10=C11,MATCH(C11,OFFSET(Satış[TOPLAM],D10,),0)+D10,MATCH(C11,Satış[TOPLAM],0))) ->  | E11: =IF($B11>n,"",INDEX(Satış[ÜRÜN],D11)) ->  | F11: =IF($B11>n,"",INDEX(Satış[1. ÇEYREK],$D11)) ->  | G11: =IF($B11>n,"",INDEX(Satış[2. ÇEYREK],$D11)) ->  | H11: =IF($B11>n,"",INDEX(Satış[3. ÇEYREK],$D11)) ->  | I11: =IF($B11>n,"",INDEX(Satış[4. ÇEYREK],$D11)) -> 
B12: 8 | C12: =IF($B12>n,"",LARGE(Satış[TOPLAM],8)) ->  | D12: =IF($B12>n,"",IF(C11=C12,MATCH(C12,OFFSET(Satış[TOPLAM],D11,),0)+D11,MATCH(C12,Satış[TOPLAM],0))) ->  | E12: =IF($B12>n,"",INDEX(Satış[ÜRÜN],D12)) ->  | F12: =IF($B12>n,"",INDEX(Satış[1. ÇEYREK],$D12)) ->  | G12: =IF($B12>n,"",INDEX(Satış[2. ÇEYREK],$D12)) ->  | H12: =IF($B12>n,"",INDEX(Satış[3. ÇEYREK],$D12)) ->  | I12: =IF($B12>n,"",INDEX(Satış[4. ÇEYREK],$D12)) -> 
B13: 9 | C13: =IF($B13>n,"",LARGE(Satış[TOPLAM],9)) ->  | D13: =IF($B13>n,"",IF(C12=C13,MATCH(C13,OFFSET(Satış[TOPLAM],D12,),0)+D12,MATCH(C13,Satış[TOPLAM],0))) ->  | E13: =IF($B13>n,"",INDEX(Satış[ÜRÜN],D13)) ->  | F13: =IF($B13>n,"",INDEX(Satış[1. ÇEYREK],$D13)) ->  | G13: =IF($B13>n,"",INDEX(Satış[2. ÇEYREK],$D13)) ->  | H13: =IF($B13>n,"",INDEX(Satış[3. ÇEYREK],$D13)) ->  | I13: =IF($B13>n,"",INDEX(Satış[4. ÇEYREK],$D13)) -> 
B14: 10 | C14: =IF($B14>n,"",LARGE(Satış[TOPLAM],10)) ->  | D14: =IF($B14>n,"",IF(C13=C14,MATCH(C14,OFFSET(Satış[TOPLAM],D13,),0)+D13,MATCH(C14,Satış[TOPLAM],0))) ->  | E14: =IF($B14>n,"",INDEX(Satış[ÜRÜN],D14)) ->  | F14: =IF($B14>n,"",INDEX(Satış[1. ÇEYREK],$D14)) ->  | G14: =IF($B14>n,"",INDEX(Satış[2. ÇEYREK],$D14)) ->  | H14: =IF($B14>n,"",INDEX(Satış[3. ÇEYREK],$D14)) ->  | I14: =IF($B14>n,"",INDEX(Satış[4. ÇEYREK],$D14)) -> 
E15: ="" -> 
B16: =DiğerleriniEkle="Evet" -> FALSE | E16: Diğer | F16: =SUM(Satış[1. ÇEYREK]) - SUM(F5:F14) -> 6533 | G16: =SUM(Satış[2. ÇEYREK]) - SUM(G5:G14) -> 5553.05 | H16: =SUM(Satış[3. ÇEYREK]) - SUM(H5:H14) -> 6959.8 | I16: =SUM(Satış[4. ÇEYREK]) - SUM(I5:I14) -> 8166.25 | J16: =SUM(Satış[TOPLAM]) - SUM(J5:J14) -> 27212.1
E18: TOPLAM | F18: =SUM(Satış[1. ÇEYREK]) -> 18613.4 | G18: =SUM(Satış[2. ÇEYREK]) -> 16921.39 | H18: =SUM(Satış[3. ÇEYREK]) -> 23554.44 | I18: =SUM(Satış[4. ÇEYREK]) -> 24231 | J18: =SUM(Satış[TOPLAM]) -> 83320.23
B22: ="TOPLAM VE EN ÇOK SATILAN ÜRÜNLER" -> TOPLAM VE EN ÇOK SATILAN ÜRÜNLER
